Cogmind - Beta 13 @@@ ROGUE MODE // 2024.04.05 @ 22:17:50 Player: misiasty3 Result: Destroyed by D-53 Grenadier with Mini Grenade Launcher Performance ------------- Evolutions (0) 0 Regions Visited (2) 400 Robots Destroyed (12) 60 Value Destroyed (294) 294 Prototype IDs (0) 0 Alien Tech Used (0) 0 Bonus (0) 0 TOTAL SCORE: 754 Bonus ------- None Cogmind --------- Core Integrity 0/250 Matter 208/300 Energy 100/100 System Corruption 4% Temperature Cool (0) Movement Rolling (115) Ox1 Location -10/Mines Parts ------- > --- POWER (1) -------- (None) > --- PROPULSION (2) --- Light Treads Compact Wheel > --- UTILITY (2) ------ Large Storage Unit Utility Shielding > --- WEAPON (2) ------- (None) > --- INVENTORY (15) --- Light Treads Large Storage Unit Particle Gun Particle Gun Beam Cannon Light Assault Rifle Shotgun Shotgun Grenade Launcher Peak State ------------ > --- POWER ------------ Light Ion Engine > --- PROPULSION ------- Wheel Compact Wheel > --- UTILITY ---------- Large Storage Unit Hacking Suite > --- WEAPON ----------- Shotgun Shotgun > --- INVENTORY -------- Light Treads Light Treads Large Storage Unit Utility Shielding Particle Gun Particle Gun Assault Rifle Assault Rifle Light Assault Rifle Grenade Launcher [Rating: 12] Favorites ----------- Power Light Ion Engine Engine Light Ion Engine Propulsion Light Treads Treads Light Treads Wheel Compact Wheel Utility Utility Shielding Storage Large Storage Unit Hackware Hacking Suite Protection Utility Shielding Weapon Shotgun Energy Gun Particle Gun Energy Cannon Beam Cannon Ballistic Gun Shotgun Launcher Grenade Launcher Build | -11 -10 -10 ------- Run | Yrd Mat Min Slots Evolved . | . . . Power . | . . . Propulsion . | . . . Utility . | . . . Weapon . | . . . Parts Attached 35 | 6 23 6 Power 1 | 1 . . Engine 1 | 1 . . Core . | . . . Reactor . | . . . Propulsion 14 | 2 9 3 Treads 6 | . 5 1 Leg . | . . . Wheel 8 | 2 4 2 Hover . | . . . Flight . | . . . Utility 5 | 1 4 . Device . | . . . Storage 2 | 1 1 . Processor . | . . . Hackware 1 | . 1 . Protection 2 | . 2 . Artifact . | . . . Weapon 15 | 2 10 3 Energy Gun 1 | . 1 . Energy Cannon 1 | . . 1 Ballistic Gun 12 | 2 8 2 Ballistic Cannon . | . . . Launcher 1 | . 1 . Special Weapon . | . . . Impact Weapon . | . . . Slashing Weapon . | . . . Piercing Weapon . | . . . Special Melee Weapon . | . . . Unidentified Prototypes . | . . . Parts Lost 4 | . . 4 Power 1 | . . 1 Propulsion 1 | . . 1 Utility . | . . . Weapon 2 | . . 2 Highest Loss Streak 4 | . . 4 To Critical Strikes . | . . . Average Slot Usage (%) 95 | . 96 90 Engine 13 | . 14 9 Treads 15 | . 17 2 Wheel 12 | . 10 25 Storage 14 | . 14 14 Hackware 2 | . 2 . Protection 8 | . 7 14 Ballistic Gun 26 | . 27 22 Naked Turns . | . . . Heaviest Build 30 | 11 30 28 Greatest Support 40 | 26 40 26 Greatest Overweight (x) 1 | . 1 1 Average Overweight (x) . | . . . Largest Inventory Capacity 15 | 8 15 15 Average Capacity 11 | 6 11 15 Most Carried 12 | 5 12 10 Average Carried 8 | 2 8 9 Final Capacity 15 | 8 15 15 Final Carried 10 | 3 10 9 Class Distribution -------------------- 100% | Mutant Dominant Class ---------------- Mutant | -10/Materials Mutant | -10/Mines Resources | -11 -10 -10 ----------- Run | Yrd Mat Min Matter Collected 694 | 200 334 160 Remotely . | . . . Salvage Created 356 | . 356 . Parts 26 | . 26 . Haulers Intercepted 1 | . 1 . Recyclers Shooed 2 | . 2 . Parts Field Recycled . | . . . Retrieved Matter . | . . . Parts Self-Destructed . | . . . Prevented . | . . . Kills | -11 -10 -10 ------- Run | Yrd Mat Min Combat Hostiles Destroyed 9 | . 9 . Guns 9 | . 9 . Classes Destroyed 5 | . 5 . Hauler 1 | . 1 . Operator 1 | . 1 . Watcher 1 | . 1 . Swarmer 3 | . 3 . Grunt 6 | . 6 . Best Kill Streak 3 | . 3 . Combat Bots Only 3 | . 3 . Max Kills in Single Turn 1 | . 1 . Gunslinging . | . . . Exploded . | . . . Melee . | . . . Uniques/NPCs Destroyed . | . . . Combat | -11 -10 -10 -------- Run | Yrd Mat Min Hostile Shots Fired 41 | . 25 16 Missed 5 | . 5 . Damage Taken 856 | . 228 628 Core 263 | . 54 209 Absorbed by Shields . | . . . Redirected to Shielding 32 | . . 32 Core Remaining (%) 100 | 100 . . Volleys Fired 33 | . 29 4 Largest 2 | . 2 2 Hottest 85 | . 85 40 Shots Fired 66 | . 57 9 Gun 65 | . 56 9 Cannon . | . . . Launcher 1 | . 1 . Special . | . . . Kinetic 60 | . 51 9 Thermal 5 | . 5 . Explosive 1 | . 1 . Electromagnetic . | . . . Robot Hit Streak 9 | . 9 6 Robot Miss Streak 3 | . 3 1 Penetration Max . | . . . Secondary Targets . | . . . Shots Hit Robots 51 | . 44 7 Core Hits 26 | . 25 1 Critical Kills . | . . . Critical Parts Destroyed . | . . . Critical Strikes . | . . . Melee Attacks . | . . . Impact . | . . . Slashing . | . . . Piercing . | . . . Sneak Attacks . | . . . Combat Hostiles . | . . . Follow-up Attacks . | . . . Damage Inflicted 705 | . 614 91 Guns 705 | . 614 91 Cannons . | . . . Explosions . | . . . Melee . | . . . Ramming . | . . . Kinetic 627 | . 536 91 Thermal 78 | . 78 . Explosive . | . . . Electromagnetic . | . . . Impact . | . . . Slashing . | . . . Piercing . | . . . Highest Corruption 4 | . 4 4 Average Corruption 3 | . 3 4 Corruption Purged . | . . . Corruption Blocked . | . . . Effects 17 | . 13 4 Message Errors 8 | . 7 1 Matter Fused 3 | . 3 . Heat Flow Errors 3 | . 2 1 Energy Discharges 1 | . 1 . Data Loss (major) 1 | . . 1 Misfires 1 | . . 1 Overload Shots . | . . . Overflow Damage . | . . . Projectiles . | . . . Explosions . | . . . Melee . | . . . Knockbacks . | . . . Impact . | . . . Kinetic . | . . . Secondary . | . . . Self-Inflicted Damage . | . . . Shots . | . . . Rammed . | . . . Targets Rammed . | . . . Kicked . | . . . Crushed . | . . . Highest Temperature 216 | . 197 216 Average Temperature 62 | . 51 116 Received Heat Transfer 105 | . 105 . Siege Activations . | . . . Robots Corrupted . | . . . Combat Hostiles . | . . . Parts Fried . | . . . Impact Corruptions . | . . . Robots Melted . | . . . Combat Hostiles . | . . . Parts Melted 1 | . 1 . Heat Transferred 185 | . 185 . Parts Sabotaged . | . . . Parts Stolen . | . . . Parts Stripped . | . . . Power Chain Reactions . | . . . Alert | -11 -10 -10 ------- Run | Yrd Mat Min Peak Influence 171 | . 171 20 Initial 20 | . . 20 Average 47 | . 53 15 Maximum Alert Level . | . . . Low Security (%) 100 | 100 100 100 Level 1 . | . . . Level 2 . | . . . Level 3 . | . . . Level 4 . | . . . Level 5 . | . . . High Security . | . . . Max Security . | . . . Squads Dispatched 2 | . 2 . Investigation 1 | . 1 . Extermination . | . . . Reinforcement 1 | . 1 . Assault . | . . . Garrison . | . . . Intercept . | . . . Searches Triggered . | . . . Construction Impeded . | . . . Haulers Reinforced . | . . . Active Scanning Responses . | . . . Cargo Convoy Interrupts . | . . . Stealth | -11 -10 -10 --------- Run | Yrd Mat Min Distress Signals 2 | . 2 . Communications Jammed . | . . . Distress Signals . | . . . Times Spotted 19 | . 17 2 Peak Tracking Total 4 | . 4 2 Tactical Retreats 1 | . 1 . Traps | -11 -10 -10 ------- Run | Yrd Mat Min Traps Triggered 3 | . 3 . Indirectly . | . . . Trap Hack Attempts . | . . . Triggered . | . . . Disarmed . | . . . Reprogrammed . | . . . Reused . | . . . Traps Extracted . | . . . Installed . | . . . Triggered . | . . . Machines | -11 -10 -10 ---------- Run | Yrd Mat Min Machines Disabled . | . . . Max in Single Turn . | . . . Machines Repaired . | . . . Machines Dismantled . | . . . Machines Sabotaged . | . . . Overloaded Fab Kills . | . . . Hacking | -11 -10 -10 --------- Run | Yrd Mat Min Machines Accessed 2 | . 2 . Terminals 1 | . 1 . Fabricators . | . . . Repair Stations . | . . . Recycling Units 1 | . 1 . Scanalyzers . | . . . Garrison Access . | . . . Total Hacks 5 | . 5 . Successful 3 | . 3 . Failed 2 | . 2 . Catastrophic . | . . . Database Lockouts . | . . . Manual . | . . . Terminals 3 | . 3 . Fabricators . | . . . Repair Stations . | . . . Recycling Units 2 | . 2 . Scanalyzers . | . . . Garrison Access . | . . . Terminal Hacks 2 | . 2 . Hauler Manifests 1 | . 1 . Registered Components 1 | . 1 . Fabricator Hacks . | . . . Repair Station Hacks . | . . . Recycling Unit Hacks 1 | . 1 . Recycle Component 1 | . 1 . Scanalyzer . | . . . Garrison Access Hacks . | . . . Unauthorized Hacks . | . . . Terminals . | . . . Fabricators . | . . . Repair Stations . | . . . Recycling Units . | . . . Scanalyzers . | . . . Garrison Access . | . . . Data Cores Recovered 1 | . 1 . Used . | . . . Hacking Detections 2 | . 2 . Full Trace Events 1 | . 1 . Feedback Events . | . . . Feedback Blocked . | . . . Robot Schematics Acquired . | . . . Robots Built . | . . . Authchips . | . . . Time . | . . . Total Robot Build Rating . | . . . Part Schematics Acquired . | . . . Parts Built . | . . . Authchips . | . . . Time . | . . . Total Part Build Rating . | . . . Parts Repaired . | . . . Time . | . . . Parts Recycled 1 | . 1 . Recycled Matter . | . . . Retrieved Matter . | . . . Retrieved Components . | . . . Parts Scanalyzed . | . . . Part Schematics Acquired . | . . . Parts Damaged . | . . . Bothacking | -11 -10 -10 ------------ Run | Yrd Mat Min Used RIF Installer . | . . . Robots Hacked . | . . . Non-combat . | . . . Combat . | . . . Robot Hacks Applied . | . . . Relay Couplers Released . | . . . Fabnet Peak Effective % . | . . . Robots Rewired . | . . . Allies Hacked . | . . . Hacks Repelled . | . . . Allies | -11 -10 -10 -------- Run | Yrd Mat Min Total Allies . | . . . Largest Group . | . . . Highest-Rated Group . | . . . Highest-Rated Ally . | . . . Total Orders . | . . . Ally Attacks . | . . . Total Damage . | . . . Kills . | . . . Allies Corrupted . | . . . Allies Melted . | . . . Intel | -11 -10 -10 ------- Run | Yrd Mat Min Robot Analysis Total . | . . . Derelict Logs Recovered 1 | . . 1 Drone Launches . | . . . Drone Recoveries . | . . . Exploration | -11 -10 -10 ------------- Run | Yrd Mat Min Turns Passed 1230 | 58 1042 130 Spaces Moved 770 | 51 630 89 Core 6 | 6 . . Treads 309 | . 309 . Legs . | . . . Wheels 455 | 45 321 89 Hover . | . . . Flight . | . . . Fastest Speed 50 | 50 90 90 Average Speed 125 | 85 131 106 Slowest Speed 160 | 90 160 115 Overloaded Moves . | . . . Propulsion Burnouts . | . . . Robots Hopped . | . . . Cave-ins Triggered . | . . . Exploration Rate (%) 38 | 4 84 28 Regions Visited 2 Branch Regions 1 Pre-discovered Areas . | . . . Known Exits Taken . | . . . Unknown Exits Taken 2 | 1 1 . Scrap Searched . | . . . Spaces Dug . | . . . Terrain Destroyed 12 | . 12 . Melee . | . . . Projectile . | . . . AOE 12 | . 12 . Terrain Rammed . | . . . Walls Destroyed . | . . . Machines Disabled . | . . . Actions | -11 -10 -10 --------- Run | Yrd Mat Min Total 961 | 65 781 115 Wait 101 | . 86 15 Move 768 | 50 629 89 Hop . | . . . Pick Up 20 | 9 11 . Fast Attach . | . . . Attach 11 | 6 3 2 Detach 3 | . 2 1 Swap 24 | . 20 4 Drop 1 | . 1 . Fire 33 | . 29 4 Melee . | . . . Ram . | . . . Kick . | . . . Crush . | . . . Escape Stasis . | . . . Rewire . | . . . Trap . | . . . Miscellaneous . | . . . Route ------- -11/Scrapyard -10/Materials (discovered 4 exits: *Mat x3 / [*Min]) -10/Mines (discovered 1 exit: Mat) History --------- Turn | Location | Event 6 | -11/Scrapyard | Discovered new exit (range 15) 59 | -11/Scrapyard | Entered Materials 355 | -10/Materials | Build established: Mutant 412 | -10/Materials | Discovered new exit (range 4) 676 | -10/Materials | Discovered new exit (range 6) 874 | -10/Materials | Discovered new exit (range 11) 1032 | -10/Materials | Discovered new exit (range 14) 1101 | -10/Materials | Entered Mines 1102 | -10/Mines | Assembled infested the area 1120 | -10/Mines | Met a Derelict bent on vengeance 1148 | -10/Mines | Identified exit to Materials 1165 | -10/Mines | Met 8R-AWN 1200 | -10/Mines | Core integrity fell below 50% 1213 | -10/Mines | Core integrity fell below 20% 1231 | -10/Mines | Destroyed by D-53 Grenadier with Mini Grenade Launcher Last Messages --------------- out here, anyway. 01168_ Acquired 19 matter. 01170_ Acquired 20 matter. 01172_ The unstable cave ceiling collapses. 01173_ Acquired 15 matter. 01174_ Acquired 16 matter. 01175_ Acquired 20 matter. 01176_ Acquired 14 matter. 01177_ Acquired 16 matter. 01183_ Acquired 20 matter. 01195_ Lgt. Ion Engine destroyed. 01204_ Assault Rifle destroyed. 01204_ D-53 Grenadier destroyed. 01208_ The unstable cave ceiling collapses. 01210_ Assault Rifle destroyed. 01210_ Wheel destroyed. 01211_ The unstable cave ceiling collapses. 01219_ System corrupted: Substantial component data lost. 01219_ The unstable cave ceiling collapses. Map ----- +----------------------------------------------------+ | ????????? %?????????????? ??????????????????? | | ????????? ##????????????# #??????????????????? | | ?????????? ##?????#?????# ##?????????????????? | | ??????????#% ????? ?????# #?????????????????? | | ???????????! ##???# #????# ####??????????????? | | ???????????? "????# #????# ???????????????? | | ????????????# #????# ###### ????????????????? | | ?????????#### #????# ## ? #????????????????? | | ??????#### ###??# ## #?# #????????????????? | | ?????## ##?# ## #?# #????????????????? | | ????## ### ## #?# ##???????????????? | | ????# ### #???????????????? | | ????# " #???????????????? | | ????## # ######### ##??????????? #?? | | ??# ## ### #???????## ##????????? ##? | | ?# # ##???????# ###?????? ## | | ?## # # #???????## #????? # | | # % % ### #????????## ##### # | | # # ???## ##?????????# #? | | # # # ????# #?????????# ## #? | | #?##? ???##### # #?????????# #### #### # | | ????#????# ##????????## #??# #??????? # | | ?????????# ## #????###### #??# #?????????? | | ????????????#### ######## ## #### #?????????? | | ???????????????# d #?????????? | | ????????##?????# @ #####?????????? | | ???????## ????############ ######## #?????? | | ??###### ####?????????## #?????? | | # ########### #######???????? | | ???????# #????????????? | | ???????## ## ### #????????????? | | ????????????############ ##?## ##????????????? | | ???????????????????????####???######?????????????? | | ?????????????????????????????????????????????????? | | ?????????????????????????????????????????????????? | | | | | | | | | | | | | | | | | | | | | | | | | | | | | | | +----------------------------------------------------+ Best States ------------- Heat Dissipation 25 Energy Generation 10 Energy Capacity 125 Matter Stores 240 Matter Capacity 300 Sight Range 16 Terrain Scan Density 10 Utility Shielding 33 Evasion (%) 42 Recoil Reduction 2 Offensive Hacking 10 Item Schematics ----------------- None Robot Schematics ------------------ None Fabricated ------------ Nothing Alien Tech Used ----------------- None Achievements -------------- Shopping List Challenges ------------ None Game ------ Seed SmartbombEnhancedKatana Manual? 0 Play Time 00:31:22 Cumulative 5.7 hours Start 2024.04.05 @ 21:26:01 End 2024.04.05 @ 22:17:50 Sessions 1 Manual Loads 0 Difficulty Rogue Special Mode None Game No. 3 Rogue 3 Adventurer 0 Explorer 0 Win Type - Total 0 Types 0/0/0/0/0/0/0/0/0 Lore% 0 Gallery% 6 Achievement% 7 Wizard Run 0 Options --------- Layout 1 ASCII 0 Keyboard 0 Movement Mouse Keybinds 0 Fullscreen 1 Font 24/Smallcaps Map View 50x35 Zoom Use 0% Tactical HUD 1 Map Filters NONE Filters NONE Steam 1 RUN: 65e517e6-a17d-484a-be1d-8da82f3adc49